fUST/lending_fUST_20240921
["ID","MTS","AMOUNT","RATE_DAILY","PERIOD"]
[338669502,1726861873147,-500.0,0.0001786,2]
[338669503,1726861873157,-594.94,0.0001786,2]
[338669504,1726861873167,-611.1,0.0001786,2]
[338669505,1726861873176,-500.0,0.0001786,2]
[338669506,1726861873186,-916.06,0.0001786,2]
[338669507,1726861873197,-509.7,0.0001786,2]
[338669508,1726861873207,-599.42,0.0001786,2]
[338669509,1726861873217,-586.37,0.0001786,2]
[338669510,1726861873226,-1222.61,0.0001786,2]
[338669511,1726861873236,-500.0,0.0001786,2]
[338669513,1726861873245,-734.95,0.0001786,2]
[338669514,1726861873255,-620.95,0.0001786,2]
[338669515,1726861873264,-500.0,0.0001786,2]
[338669516,1726861873273,-500.0,0.0001786,2]
[338669517,1726861873283,-995.07,0.0001786,2]
[338669518,1726861873294,-500.0,0.0001786,2]
[338669519,1726861873303,-152.94,0.0001786,2]
[338669520,1726861873313,-500.0,0.0001786,2]
[338669521,1726861873322,-500.0,0.0001786,2]
[338669522,1726861873331,-206.72,0.0001786,2]
[338669524,1726861873340,-151.292781,0.00017867,2]
[338669525,1726861873353,-151.292782,0.00017867,2]
[338669526,1726861873362,-500.0,0.00017868,2]
[338669527,1726861873371,-500.0,0.00017868,2]
[338669528,1726861873381,-578.26,0.00017868,2]
[338669529,1726861873392,-460.29,0.00017868,2]
[338669530,1726861873401,-500.0,0.00017868,2]
[338669531,1726861873412,-500.0,0.00017868,2]
[338669532,1726861873422,-316.465035,0.00017868,2]
[338669533,1726861873434,-504.93,0.00017868,2]
[338669534,1726861873444,-599.04,0.00017868,2]
[338669535,1726861873453,-465.53355,0.00017868,2]
[338669536,1726861873463,-465.533549,0.00017868,2]
[338669537,1726861873473,-1128.579691,0.00017868,2]
[338669538,1726861873482,-1128.579685,0.00017868,2]
[338669539,1726861873492,-812.5,0.00017868,2]
[338669540,1726861873503,-500.0,0.00017868,2]
[338669541,1726861873513,-500.0,0.00017868,2]
[338669542,1726861873522,-500.0,0.00017868,2]
[338669543,1726861873531,-500.0,0.00017868,2]
[338669544,1726861873543,-636.19,0.00017868,2]
[338669545,1726861873555,-210.69,0.00017868,2]
[338669546,1726861873564,-620.53,0.00017868,2]
[338669547,1726861873574,-500.0,0.00017868,2]
[338669548,1726861873585,-500.0,0.00017868,2]
[338669549,1726861873597,-500.0,0.00017868,2]
[338669550,1726861873607,-500.0,0.00017868,2]
[338669551,1726861873619,-500.0,0.00017868,2]
[338669552,1726861873632,-194.881622,0.00017868,2]
[338669553,1726861873642,-194.88163,0.00017868,2]
[338669554,1726861873651,-500.0,0.00017868,2]
[338669555,1726861873662,-1302.0,0.00017868,2]
[338669557,1726861873673,-500.0,0.00017868,2]
[338669558,1726861873683,-866.38,0.00017868,2]
[338669559,1726861873693,-500.0,0.00017868,2]
[338669560,1726861873705,-500.0,0.00017868,2]
[338669561,1726861873715,-593.68,0.00017868,2]
[338669562,1726861873725,-500.0,0.00017868,2]
[338669563,1726861873734,-244.71,0.00017868,2]
[338669564,1726861873744,-500.0,0.00017868,2]
[338669565,1726861873753,-599.94,0.00017868,2]
[338669566,1726861873764,-500.0,0.00017868,2]
[338669567,1726861873775,-500.0,0.00017868,2]
[338669568,1726861873784,-500.0,0.00017868,2]
[338669569,1726861873796,-500.0,0.00017868,2]
[338669570,1726861873806,-412.11710641,0.00017868,2]
[338669571,1726861873816,-500.0,0.00017868,2]
[338669572,1726861873828,-2280.61,0.00017868,2]
[338669573,1726861873840,-669.48,0.00017868,2]
[338669574,1726861873852,-726.3,0.00017868,2]
[338669575,1726861873862,-202.243304,0.00017868,2]
[338669576,1726861873873,-1026.75,0.00017868,2]
[338669577,1726861873884,-202.24331,0.00017868,2]
[338669578,1726861873895,-1084.68,0.00017868,2]
[338669579,1726861873906,-500.0,0.00017868,2]
[338669580,1726861873917,-907.23,0.00017868,2]
[338669581,1726861873929,-572.31,0.00017868,2]
[338669582,1726861873940,-1116.57,0.00017868,2]
[338669583,1726861873951,-903.27,0.00017868,2]
[338669584,1726861873962,-500.0,0.00017868,2]
[338669585,1726861873973,-500.0,0.00017868,2]
[338669586,1726861873983,-500.0,0.00017868,2]
[338669588,1726861873992,-653.87,0.00017868,2]
[338669589,1726861874002,-188.65628345,0.00017868,2]
[338669590,1726861874012,-1050.13,0.00017868,2]
[338669591,1726861874021,-500.0,0.00017868,2]
[338669592,1726861874030,-500.0,0.00017868,2]
[338669593,1726861874040,-667.12,0.00017868,2]
[338669594,1726861874050,-596.06,0.00017868,2]
[338669595,1726861874062,-570.9,0.00017868,2]
[338669596,1726861874072,-505.57,0.00017868,2]
[338669597,1726861874085,-500.0,0.00017868,2]
[338669598,1726861874095,-500.0,0.00017868,2]
[338669599,1726861874106,-500.0,0.00017868,2]
[338669600,1726861874116,-282.76710126,0.00017868,2]
[338669601,1726861874127,-716.71,0.00017868,2]
[338669602,1726861874139,-581.36,0.00017868,2]
[338669603,1726861874149,-500.0,0.00017868,2]
[338669604,1726861874159,-210.484261,0.00017878,2]
[338669605,1726861874170,-210.484261,0.00017878,2]
[338669606,1726861874181,-256.1607,0.00017879,2]
[338669607,1726861874191,-256.1607,0.00017879,2]
[338669608,1726861874201,-151.0,0.00017897,2]
[338669609,1726861874211,-500.0,0.00017897,2]
[338669610,1726861874224,-500.0,0.00017897,2]
[338669611,1726861874233,-500.0,0.00017897,2]
[338669612,1726861874255,-219.533465,0.00017897,2]
[338669613,1726861874265,-219.533457,0.00017897,2]
[338669614,1726861874276,-9386.126152,0.000179,2]
[338669615,1726861874286,-13567.409999,0.000179,4]
[338669616,1726861874295,-151.0,0.000179,2]
[338669617,1726861874305,-1500.0,0.00017946,2]
[338669618,1726861874316,-1500.0,0.00017946,2]
[338669619,1726861874326,-600.0,0.00017991,2]
[338669620,1726861874336,-13567.41,0.00018,5]
[338669621,1726861874347,-200.32255119,0.00018,3]
[338669622,1726861874359,-5301.36617831,0.00018,2]
[338669623,1726861874369,-184.0,0.00018,2]
[338669624,1726861874380,-8423.66061872,0.00018,10]
[338669625,1726861874389,-1144.0,0.00018,2]
[338669626,1726861874399,-876.351473,0.00018,2]
[338669627,1726861874409,-876.35147472,0.00018,2]
[338669628,1726861874419,-1000.0,0.00018,2]
[338669629,1726861874428,-151.0,0.00018082,2]
[338669630,1726861874438,-500.0,0.00018124,2]
[338669631,1726861874447,-942.42,0.00018124,2]
[338669632,1726861874457,-500.0,0.00018124,2]
[338669633,1726861874467,-500.0,0.00018124,2]
[338669634,1726861874477,-738.19,0.00018124,2]
[338669635,1726861874489,-500.0,0.00018124,2]
[338669636,1726861874499,-500.0,0.00018124,2]
[338669637,1726861874509,-200.0,0.00018124,2]
[338669638,1726861874520,-535.98,0.00018124,2]
[338669639,1726861874531,-534.67,0.00018124,2]
[338669640,1726861874542,-580.18,0.00018124,2]
[338669641,1726861874553,-500.0,0.00018124,2]
[338669642,1726861874562,-500.0,0.00018124,2]
[338669643,1726861874572,-636.89,0.00018124,2]
[338669644,1726861874581,-1821.39,0.00018124,2]
[338669645,1726861874591,-500.0,0.00018124,2]
[338669646,1726861874600,-500.0,0.00018124,2]
[338669647,1726861874611,-1170.8,0.00018124,2]
[338669648,1726861874623,-500.0,0.00018124,2]
[338669649,1726861874634,-500.0,0.00018124,2]
[338669650,1726861874645,-6388.89,0.00018124,2]
[338669651,1726861874658,-1603.85,0.00018134,2]
[338669652,1726861874667,-500.0,0.00018134,2]
[338669653,1726861874679,-500.0,0.00018134,2]
[338669654,1726861874691,-594.94,0.00018134,2]
[338669655,1726861874703,-611.1,0.00018134,2]
[338669656,1726861874714,-378.60538404,0.00018134,2]
[338669657,1726861874725,-916.06,0.00018134,2]
[338669658,1726861874736,-509.7,0.00018134,2]
[338669659,1726861874876,-599.42,0.00018134,2]
[338669660,1726861874887,-586.37,0.00018134,2]
[338669661,1726861874896,-1222.61,0.00018134,2]
[338669662,1726861874906,-500.0,0.00018134,2]
[338669663,1726861874916,-734.95,0.00018134,2]
[338669665,1726861874927,-620.95,0.00018134,2]
[338669666,1726861874940,-500.0,0.00018134,2]
[338669667,1726861874950,-500.0,0.00018134,2]
[338669668,1726861874959,-995.07,0.00018134,2]
[338669669,1726861874970,-500.0,0.00018134,2]
[338669670,1726861874980,-500.0,0.00018134,2]
[338669671,1726861874989,-500.0,0.00018134,2]
[338669672,1726861874998,-151.0,0.00018142,2]
[338669673,1726861875008,-500.0,0.00018142,2]
[338669674,1726861875017,-151.0,0.00018142,2]
[338669675,1726861875027,-517.33777353,0.00018142,2]
[338669676,1726861875036,-578.26,0.00018142,2]
[338669677,1726861875046,-500.0,0.00018142,2]
[338669678,1726861875055,-500.0,0.00018142,2]
[338669679,1726861875065,-504.93,0.00018142,2]
[338669680,1726861875076,-599.04,0.00018142,2]
[338669681,1726861875087,-151.0,0.00018142,2]
[338669682,1726861875097,-812.5,0.00018142,2]
[338669683,1726861875106,-500.0,0.00018142,2]
[338669684,1726861875115,-291.16269423,0.00018142,2]
[338669685,1726861875127,-500.0,0.00018142,2]
[338669686,1726861875137,-304.31183976,0.00018142,2]
[338669687,1726861875149,-636.19,0.00018142,2]
[338669688,1726861875159,-620.53,0.00018142,2]
[338669689,1726861875168,-500.0,0.00018142,2]
[338669690,1726861875180,-500.0,0.00018142,2]
[338669691,1726861875190,-500.0,0.00018142,2]
[338669692,1726861875201,-500.0,0.00018142,2]
[338669693,1726861875211,-500.0,0.00018142,2]
[338669694,1726861875220,-500.0,0.00018142,2]
[338669695,1726861875231,-1302.0,0.00018142,2]
[338669696,1726861875242,-500.0,0.00018142,2]
[338669697,1726861875252,-866.38,0.00018142,2]
[338669698,1726861875262,-500.0,0.00018142,2]
[338669699,1726861875272,-500.0,0.00018142,2]
[338669700,1726861875281,-593.68,0.00018142,2]
[338669701,1726861875292,-500.0,0.00018142,2]
[338669702,1726861875302,-244.71,0.00018142,2]
[338669703,1726861875314,-500.0,0.00018142,2]
[338669704,1726861875324,-599.94,0.00018142,2]
[338669705,1726861875333,-500.0,0.00018142,2]
[338669706,1726861875344,-520.09191297,0.00018142,2]
[338669707,1726861875354,-500.0,0.00018142,2]
[338669708,1726861875364,-359.24514943,0.00018142,2]
[338669709,1726861875374,-500.0,0.00018142,2]
[338669710,1726861875384,-2280.61,0.00018142,2]
[338669711,1726861875394,-669.48,0.00018142,2]
[338669712,1726861875403,-726.3,0.00018142,2]
[338669713,1726861875413,-1026.75,0.00018142,2]
[338669714,1726861875422,-1084.68,0.00018142,2]
[338669715,1726861875431,-500.0,0.00018142,2]
[338669716,1726861875440,-907.23,0.00018142,2]
[338669717,1726861875450,-572.31,0.00018142,2]
[338669718,1726861875460,-1116.57,0.00018142,2]
[338669719,1726861875470,-903.27,0.00018142,2]
[338669720,1726861875479,-273.7810641,0.00018142,2]
[338669721,1726861875488,-500.0,0.00018142,2]
[338669722,1726861875498,-500.0,0.00018142,2]
[338669723,1726861875508,-653.87,0.00018142,2]
[338669724,1726861875518,-1050.13,0.00018142,2]
[338669725,1726861875527,-500.0,0.00018142,2]
[338669726,1726861875536,-500.0,0.00018142,2]
[338669727,1726861875547,-667.12,0.00018142,2]
[338669728,1726861875556,-596.06,0.00018142,2]
[338669730,1726861875565,-570.9,0.00018142,2]
[338669731,1726861875575,-500.0,0.00018142,2]
[338669732,1726861875585,-500.0,0.00018142,2]
[338669733,1726861875594,-500.0,0.00018142,2]
[338669734,1726861875604,-716.71,0.00018142,2]
[338669735,1726861875614,-581.36,0.00018142,2]
[338669736,1726861875625,-500.0,0.00018142,2]
[338669737,1726861875648,-151.0,0.00018153,2]
[338669738,1726861875667,-151.0,0.00018153,2]
[338669739,1726861875686,-600.0,0.00018171,2]
[338669740,1726861875708,-500.0,0.00018171,2]
[338669741,1726861875727,-500.0,0.00018171,2]
[338669742,1726861875745,-500.0,0.00018171,2]
[338669743,1726861875760,-2500.0,0.00018183,2]
[338669744,1726861875776,-256.1607,0.00018184,2]
[338669745,1726861875794,-256.1607,0.00018184,2]
[338669746,1726861875815,-2500.0,0.00018184,2]
[338669747,1726861875827,-2500.0,0.00018192,2]
[338669748,1726861875844,-151.0,0.00018192,2]
[338669749,1726861875861,-2500.0,0.00018193,2]
[338669750,1726861875876,-2500.0,0.00018193,2]
[338669751,1726861875888,-305.67793,0.000182,7]
[338669752,1726861875902,-1500.0,0.00018246,2]
[338669753,1726861875916,-500.0,0.0001829,2]
[338669754,1726861875931,-600.0,0.00018351,2]
[338669755,1726861875946,-151.0,0.00018356,2]
[338669756,1726861875960,-500.0,0.00018379,2]
[338669757,1726861875974,-500.0,0.00018379,2]
[338669758,1726861875990,-500.0,0.00018398,2]
[338669759,1726861876004,-942.42,0.00018398,2]
[338669760,1726861876019,-500.0,0.00018398,2]
[338669761,1726861876033,-500.0,0.00018398,2]
[338669762,1726861876048,-738.19,0.00018398,2]
[338669763,1726861876062,-568.6332996,0.00018398,2]
[338669764,1726861876077,-500.0,0.00018398,2]
[338669765,1726861876092,-200.0,0.00018398,2]
[338669767,1726861876107,-535.98,0.00018398,2]
[338669768,1726861876121,-534.67,0.00018398,2]
[338669769,1726861876135,-580.18,0.00018398,2]
[338669770,1726861876151,-500.0,0.00018398,2]
[338669771,1726861876166,-500.0,0.00018398,2]
[338669772,1726861876180,-636.89,0.00018398,2]
[338669773,1726861876195,-1821.39,0.00018398,2]
[338669775,1726861876209,-500.0,0.00018398,2]
[338669776,1726861876225,-500.0,0.00018398,2]
[338669777,1726861876241,-1170.8,0.00018398,2]
[338669778,1726861876256,-500.0,0.00018398,2]
[338669779,1726861876270,-594.39611128,0.00018398,2]
[338669780,1726861876284,-6388.89,0.00018398,2]
[338669781,1726861876302,-1603.85,0.00018408,2]
[338669782,1726861876317,-500.0,0.00018408,2]
[338669783,1726861876331,-500.0,0.00018408,2]
[338669784,1726861876342,-594.94,0.00018408,2]
[338669785,1726861876353,-611.1,0.00018408,2]
[338669786,1726861876363,-916.06,0.00018408,2]
[338669787,1726861876372,-509.7,0.00018408,2]
[338669788,1726861876381,-599.42,0.00018408,2]
[338669789,1726861876391,-586.37,0.00018408,2]
[338669790,1726861876400,-1222.61,0.00018408,2]
[338669791,1726861876410,-500.0,0.00018408,2]
[338669792,1726861876419,-734.95,0.00018408,2]
[338669793,1726861876428,-620.95,0.00018408,2]
[338669794,1726861876437,-500.0,0.00018408,2]
[338669795,1726861876447,-500.0,0.00018408,2]
[338669796,1726861876456,-995.07,0.00018408,2]
[338669797,1726861876466,-500.0,0.00018408,2]
[338669798,1726861876475,-500.0,0.00018408,2]
[338669799,1726861876485,-500.0,0.00018408,2]
[338669800,1726861876494,-438.25317802,0.00018416,2]
[338669801,1726861876504,-500.0,0.00018416,2]
[338669802,1726861876513,-178.21792266,0.00018416,2]
[338669803,1726861876523,-578.26,0.00018416,2]
[338669804,1726861876532,-630.04088527,0.00018416,2]
[338669806,1726861876541,-500.0,0.00018416,2]
[338669807,1726861876551,-504.93,0.00018416,2]
[338669808,1726861876560,-599.04,0.00018416,2]
[338669809,1726861876570,-812.5,0.00018416,2]
[338669810,1726861876582,-500.0,0.00018416,2]
[338669811,1726861876591,-390.00540231,0.00018416,2]
[338669812,1726861876846,-636.19,0.00018416,2]
[338669813,1726861876870,-620.53,0.00018416,2]
[338669815,1726861876883,-500.0,0.00018416,2]
[338669816,1726861876892,-500.0,0.00018416,2]
[338669817,1726861876901,-596.90742919,0.00018416,2]
[338669818,1726861876911,-500.0,0.00018416,2]
[338669819,1726861876920,-500.0,0.00018416,2]
[338669820,1726861876930,-500.0,0.00018416,2]
[338669821,1726861876939,-1302.0,0.00018416,2]
[338669822,1726861876948,-500.0,0.00018416,2]
[338669823,1726861876958,-866.38,0.00018416,2]
[338669824,1726861876968,-500.0,0.00018416,2]
[338669825,1726861876979,-500.0,0.00018416,2]
[338669826,1726861876988,-593.68,0.00018416,2]
[338669827,1726861876998,-500.0,0.00018416,2]
[338669828,1726861877007,-244.71,0.00018416,2]
[338669829,1726861877017,-500.0,0.00018416,2]
[338669830,1726861877026,-599.94,0.00018416,2]
[338669831,1726861877036,-500.0,0.00018416,2]
[338669832,1726861877046,-500.0,0.00018416,2]
[338669833,1726861877055,-500.0,0.00018416,2]
[338669834,1726861877064,-2280.61,0.00018416,2]
[338669835,1726861877074,-669.48,0.00018416,2]
[338669836,1726861877083,-726.3,0.00018416,2]
[338669837,1726861877092,-1026.75,0.00018416,2]
[338669838,1726861877102,-1084.68,0.00018416,2]
[338669839,1726861877111,-500.0,0.00018416,2]
[338669840,1726861877121,-907.23,0.00018416,2]
[338669841,1726861877130,-572.31,0.00018416,2]
[338669842,1726861877139,-1116.57,0.00018416,2]
[338669843,1726861877149,-903.27,0.00018416,2]
[338669844,1726861877159,-500.0,0.00018416,2]
[338669845,1726861877172,-500.0,0.00018416,2]
[338669846,1726861877181,-653.87,0.00018416,2]
[338669847,1726861877191,-1050.13,0.00018416,2]
[338669848,1726861877200,-500.0,0.00018416,2]
[338669849,1726861877209,-500.0,0.00018416,2]
[338669850,1726861877218,-667.12,0.00018416,2]
[338669851,1726861877228,-596.06,0.00018416,2]
[338669853,1726861877237,-570.9,0.00018416,2]
[338669854,1726861877246,-500.0,0.00018416,2]
[338669855,1726861877255,-500.0,0.00018416,2]
[338669856,1726861877264,-500.0,0.00018416,2]
[338669857,1726861877274,-716.71,0.00018416,2]
[338669858,1726861877283,-581.36,0.00018416,2]
[338669859,1726861877292,-500.0,0.00018416,2]
[338669860,1726861877301,-210.484261,0.00018426,2]
[338669861,1726861877311,-210.484261,0.00018426,2]
[338669862,1726861877320,-151.0,0.00018437,2]
[338669863,1726861877329,-500.0,0.00018445,2]
[338669864,1726861877338,-500.0,0.00018445,2]
[338669865,1726861877347,-500.0,0.00018445,2]
[338669866,1726861877356,-8120.86033355,0.00018447,2]
[338669867,1726861877365,-151.0,0.00018449,2]
[338669868,1726861877375,-151.0,0.00018449,2]
[338669869,1726861877384,-151.0,0.00018449,2]
[338669870,1726861877393,-1000.0,0.000185,2]
[338669871,1726861877403,-600.0,0.00018531,2]
[338669872,1726861877413,-151.0,0.0001863,2]
[338669873,1726861877422,-2500.0,0.00018632,2]
[338669874,1726861877431,-500.0,0.00018672,2]
[338669875,1726861877440,-942.42,0.00018672,2]
[338669876,1726861877450,-500.0,0.00018672,2]
[338669877,1726861877459,-500.0,0.00018672,2]
[338669878,1726861877468,-738.19,0.00018672,2]
[338669879,1726861877478,-500.0,0.00018672,2]
[338669880,1726861877487,-200.0,0.00018672,2]
[338669881,1726861877497,-535.98,0.00018672,2]
[338669882,1726861877506,-534.67,0.00018672,2]
[338669883,1726861877515,-580.18,0.00018672,2]
[338669884,1726861877524,-500.0,0.00018672,2]
[338669885,1726861877533,-500.0,0.00018672,2]
[338669886,1726861877544,-636.89,0.00018672,2]
[338669888,1726861877554,-1821.39,0.00018672,2]
[338669889,1726861877563,-500.0,0.00018672,2]
[338669890,1726861877572,-500.0,0.00018672,2]
[338669891,1726861877581,-1170.8,0.00018672,2]
[338669892,1726861877591,-500.0,0.00018672,2]
[338669893,1726861877600,-1603.85,0.00018682,2]
[338669894,1726861877609,-500.0,0.00018682,2]
[338669895,1726861877619,-500.0,0.00018682,2]
[338669896,1726861877630,-594.94,0.00018682,2]
[338669897,1726861877640,-611.1,0.00018682,2]
[338669898,1726861877649,-916.06,0.00018682,2]
[338669899,1726861877660,-509.7,0.00018682,2]
[338669900,1726861877670,-599.42,0.00018682,2]
[338669901,1726861877679,-586.37,0.00018682,2]
[338669902,1726861877688,-1222.61,0.00018682,2]
[338669903,1726861877700,-500.0,0.00018682,2]
[338669904,1726861877709,-734.95,0.00018682,2]
[338669905,1726861877719,-620.95,0.00018682,2]
[338669906,1726861877728,-500.0,0.00018682,2]
[338669907,1726861877737,-500.0,0.00018682,2]
[338669908,1726861877746,-995.07,0.00018682,2]
[338669909,1726861877756,-500.0,0.00018682,2]
[338669910,1726861877766,-359.8087139,0.00018682,2]
[338669911,1726861877775,-500.0,0.00018682,2]
[338669912,1726861877785,-252.106296,0.0001869,2]
[338669913,1726861877795,-578.26,0.0001869,2]
[338669914,1726861877803,-500.0,0.0001869,2]
[338669915,1726861877813,-504.93,0.0001869,2]
[338669916,1726861877822,-599.04,0.0001869,2]
[338669917,1726861877832,-812.5,0.0001869,2]
[338669918,1726861877842,-500.0,0.0001869,2]
[338669919,1726861877852,-636.19,0.0001869,2]
[338669920,1726861877862,-620.53,0.0001869,2]
[338669921,1726861877872,-500.0,0.0001869,2]
[338669922,1726861877881,-592.43489178,0.0001869,2]
[338669923,1726861877890,-500.0,0.0001869,2]
[338669924,1726861877900,-500.0,0.0001869,2]
[338669925,1726861877909,-500.0,0.0001869,2]
[338669926,1726861877918,-1302.0,0.0001869,2]
[338669927,1726861877928,-500.0,0.0001869,2]
[338669928,1726861877938,-866.38,0.0001869,2]
[338669930,1726861877947,-270.20087617,0.0001869,2]
[338669931,1726861877956,-500.0,0.0001869,2]
[338669932,1726861877965,-593.68,0.0001869,2]
[338669933,1726861877974,-500.0,0.0001869,2]
[338669934,1726861877983,-244.71,0.0001869,2]
[338669935,1726861877992,-500.0,0.0001869,2]
[338669936,1726861878002,-599.94,0.0001869,2]
[338669937,1726861878011,-500.0,0.0001869,2]
[338669938,1726861878021,-542.83187773,0.0001869,2]
[338669939,1726861878031,-500.0,0.0001869,2]
[338669940,1726861878040,-2280.61,0.0001869,2]
[338669941,1726861878054,-669.48,0.0001869,2]
[338669942,1726861878062,-726.3,0.0001869,2]
[338669943,1726861878072,-1026.75,0.0001869,2]
[338669944,1726861878081,-1084.68,0.0001869,2]
[338669945,1726861878090,-500.0,0.0001869,2]
[338669946,1726861878100,-907.23,0.0001869,2]
[338669947,1726861878110,-572.31,0.0001869,2]
[338669948,1726861878120,-1116.57,0.0001869,2]
[338669949,1726861878131,-903.27,0.0001869,2]
[338669950,1726861878141,-500.0,0.0001869,2]
[338669951,1726861878151,-500.0,0.0001869,2]
[338669952,1726861878160,-653.87,0.0001869,2]
[338669953,1726861878170,-1050.13,0.0001869,2]
[338669954,1726861878180,-500.0,0.0001869,2]
[338669955,1726861878189,-470.73802697,0.0001869,2]
[338669956,1726861878200,-667.12,0.0001869,2]
[338669957,1726861878210,-596.06,0.0001869,2]
[338669958,1726861878220,-570.9,0.0001869,2]
[338669959,1726861878230,-500.0,0.0001869,2]
[338669960,1726861878239,-500.0,0.0001869,2]
[338669961,1726861878248,-500.0,0.0001869,2]
[338669962,1726861878257,-716.71,0.0001869,2]
[338669963,1726861878267,-581.36,0.0001869,2]
[338669965,1726861878278,-376.44306818,0.0001869,2]
[338669966,1726861878287,-256.1607,0.000187,2]
[338669967,1726861878300,-256.1607,0.000187,2]
[338669968,1726861878310,-151.0,0.00018701,2]
[338669969,1726861878319,-300.817851,0.00018701,2]
[338669970,1726861878330,-600.0,0.00018711,2]
[338669971,1726861878339,-361.1851671,0.00018718,2]
[338669972,1726861878349,-500.0,0.00018719,2]
[338669973,1726861878358,-500.0,0.00018719,2]
[338669974,1726861878367,-500.0,0.00018719,2]
[338669975,1726861878376,-2905.0,0.0001875,2]
[338669976,1726861878385,-5000.0,0.00018837,2]
[338669977,1726861878395,-5000.0,0.00018837,2]
[338669978,1726861878404,-5000.0,0.00018837,2]
[338669979,1726861878413,-5000.0,0.00018837,2]
[338669980,1726861878423,-5000.0,0.00018837,2]
[338669981,1726861878432,-600.0,0.00018891,2]
[338669982,1726861878442,-2413.2,0.000189,5]
[338669983,1726861878452,-3368.90609362,0.000189,2]
[338669984,1726861878462,-3368.90609361,0.000189,2]
[338669985,1726861878472,-3368.90609361,0.000189,2]
[338669986,1726861878481,-3368.90609361,0.000189,2]
[338669987,1726861878491,-13814.92924843,0.000189,2]
[338669988,1726861878501,-13814.92924842,0.000189,2]
[338669989,1726861878510,-13814.92924842,0.000189,2]
[338669990,1726861878520,-13814.92924842,0.000189,2]
[338669991,1726861878529,-13567.409999,0.000189,6]
[338669992,1726861878538,-210.484261,0.000189,2]
[338669993,1726861878550,-210.484261,0.000189,2]
[338669994,1726861878560,-151.0,0.000189,2]
[338669995,1726861878569,-151.0,0.000189,2]
[338669996,1726861878579,-151.0,0.000189,2]
[338669997,1726861878589,-202.0,0.000189,2]
[338669998,1726861878598,-151.0,0.00018904,2]
[338670000,1726861878607,-5000.0,0.00018904,2]
[338670001,1726861878617,-2705.41380132,0.00018904,2]
[338670002,1726861878629,-1338.0022,0.00018913,7]
[338670003,1726861878639,-151.0,0.00018928,2]
[338670004,1726861878649,-500.0,0.00018946,2]
[338670005,1726861878659,-942.42,0.00018946,2]
[338670006,1726861878669,-500.0,0.00018946,2]
[338670007,1726861878679,-500.0,0.00018946,2]
[338670008,1726861878688,-738.19,0.00018946,2]
[338670009,1726861878700,-500.0,0.00018946,2]
[338670010,1726861878709,-200.0,0.00018946,2]
[338670011,1726861878719,-535.98,0.00018946,2]
[338670012,1726861878728,-534.67,0.00018946,2]
[338670013,1726861878738,-580.18,0.00018946,2]
[338670014,1726861878748,-500.0,0.00018946,2]
[338670015,1726861878757,-500.0,0.00018946,2]
[338670016,1726861878767,-636.89,0.00018946,2]